[Event "106th British-ch 2019"]
[Site "Torquay"]
[Date "2019.07.27"]
[Round "1.26"]
[White "Jaufarally, Nadia"]
[Black "Derakhshani, Borna"]
[Result "0-1"]
[ECO "B19"]
[WhiteElo "1944"]
[BlackElo "2300"]
[Annotator "NA"]
[PlyCount "64"]
[EventDate "2019.07.27"]
[EventType "swiss"]
[EventCountry "GBR"]
[SourceTitle "playchess.com"]
[Source "ChessBase"]
[SourceQuality "1"]
[TimeControl "40/5400+30:1800+30"]

1. e4 {[%emt 0:00:00]} c6 {[%emt 0:06:08]} 2. d4 {[%emt 0:00:00]} d5 {[%emt 0:00:04]} 3. Nd2 {[%emt 0:00:00]} dxe4 {[%emt 0:00:12]} 4. Nxe4 {[%emt 0:00:01]} Bf5 {[%emt 0:00:09]} 5. Ng3 {[%emt 0:00:10]} Bg6 {[%emt 0:00:04]} 6. h4 {[%emt 0:00:10]} h6 {[%emt 0:00:04]} 7. Nf3 {[%emt 0:00:11]} Nd7 {[%emt 0:00:05]} 8. h5 {[%emt 0:00:08]} Bh7 {[%emt 0:00:05]} 9. Bd3 {[%emt 0:00:07]} Bxd3 {[%emt 0:00:05]} 10. Qxd3 {[%emt 0:00:07]} e6 {[%emt 0:00:15]} 11. Bd2 {[%emt 0:00:17]} Ngf6 {[%emt 0:00:14]} 12. O-O-O {[%emt 0:00:21]} Be7 {[%emt 0:01:05]} 13. Kb1 {[%emt 0:00:45]} Qb6 {[%emt 0:00:15]} 14. Nh4 {[%emt 0:04:08]} O-O-O {[%emt 0:03:16]} 15. Rhe1 {[%emt 0:09:22]} Rhe8 {[%emt 0:07:56]} 16. Nf3 {[%emt 0:04:47]} Bd6 {[%emt 0:08:24]} 17. Ne4 {[%emt 0:11:57]} Nxe4 {[%emt 0:00:23]} 18. Qxe4 {[%emt 0:07:52]} Nf6 {[%emt 0:00:27]} 19. Qe2 {[%emt 0:01:39]} Ba3 {[%emt 0:13:21]} 20. Bc1 {[%emt 0:17:19]} Bb4 {[%emt 0:00:13]} 21. Bd2 {[%emt 0:06:34]} Bxd2 {[%emt 0:06:35]} 22. Rxd2 {[%emt 0:00:10]} Nd5 {[%emt 0:00:52]} 23. Ka1 {[%emt 0:12:42]} Qa5 {[%emt 0:04:21]} 24. c4 {[%emt 0:05:54]} Nf4 {[%emt 0:09:19]} 25. Qd1 {[%emt 0:10:35]} Qxh5 {[%emt 0:00:00]} 26. Re5 {[%emt 0:01:16]} f5 {[%emt 0:00:00]} 27. g3 {[%emt 0:01:04]} Ng6 {[%emt 0:00:00]} 28. Ra5 {[%emt 0:00:38]} Kb8 {[%emt 0:00:00]} 29. a3 {[%emt 0:04:03]} Qg4 {[%emt 0:07:31]} 30. Rd3 {[%emt 0:02:05]} Re7 {[%emt 0:04:33]} 31. Qa4 {[%emt 0:00:30]} b6 {[%emt 0:01:26]} 32. Qxc6 {[%emt 0:00:29]} Qe4 {[%emt 0:00:14]} 0-1

[Event "106th British-ch 2019"]
[Site "Torquay"]
[Date "2019.07.27"]
[Round "1.27"]
[White "Claridge-Hansen, William"]
[Black "Khan, Tito"]
[Result "1-0"]
[ECO "A26"]
[WhiteElo "2297"]
[BlackElo "1921"]
[Annotator "NA"]
[PlyCount "67"]
[EventDate "2019.07.27"]
[EventType "swiss"]
[EventCountry "GBR"]
[SourceTitle "playchess.com"]
[Source "ChessBase"]
[SourceQuality "1"]
[TimeControl "40/5400+30:1800+30"]

1. c4 {[%emt 0:00:00]} f5 {[%emt 0:00:00]} 2. g3 {[%emt 0:00:42]} Nf6 {[%emt 0:00:00]} 3. Bg2 {[%emt 0:00:18]} g6 {[%emt 0:00:10]} 4. Nc3 {[%emt 0:00:44]} Bg7 {[%emt 0:00:05]} 5. d3 {[%emt 0:02:22]} O-O {[%emt 0:01:16]} 6. e4 {[%emt 0:00:17]} d6 {[%emt 0:00:54]} 7. Nge2 {[%emt 0:00:14]} Nc6 {[%emt 0:00:38]} 8. O-O {[%emt 0:00:27]} e5 {[%emt 0:00:18]} 9. Nd5 {[%emt 0:06:28]} Nh5 {[%emt 0:00:59]} 10. exf5 {[%emt 0:01:23]} Bxf5 {[%emt 0:00:15]} 11. h3 {[%emt 0:02:37]} Be6 {[%emt 0:00:52]} 12. g4 {[%emt 0:01:23]} Nf6 {[%emt 0:06:40]} 13. f4 {[%emt 0:06:06]} Qd7 {[%emt 0:03:25]} 14. Ng3 {[%emt 0:04:40]} exf4 {[%emt 0:11:50]} 15. Bxf4 {[%emt 0:01:11]} Nd4 {[%emt 0:07:50]} 16. Qd2 {[%emt 0:03:45]} c6 {[%emt 0:17:52]} 17. Nc3 {[%emt 0:07:39]} d5 {[%emt 0:13:40]} 18. c5 {[%emt 0:05:12]} Rae8 {[%emt 0:21:41]} 19. Bd6 {[%emt 0:14:18]} Rf7 {[%emt 0:00:58]} 20. Rae1 {[%emt 0:04:44]} Bf8 {[%emt 0:03:06]} 21. Bxf8 {[%emt 0:00:53]} Rexf8 {[%emt 0:00:23]} 22. Qe3 {[%emt 0:04:55]} Nc2 {[%emt 0:04:52]} 23. Qxe6 {[%emt 0:00:09]} Nxe1 {[%emt 0:00:14]} 24. Qxe1 {[%emt 0:02:51]} Nxg4 {[%emt 0:01:59]} 25. Rxf7 {[%emt 0:02:05]} Rxf7 {[%emt 0:00:00]} 26. hxg4 {[%emt 0:00:23]} Qxg4 {[%emt 0:00:02]} 27. Qe8+ {[%emt 0:01:17]} Rf8 {[%emt 0:00:46]} 28. Qe5 {[%emt 0:00:41]} Qb4 {[%emt 0:01:52]} 29. Nxd5 {[%emt 0:02:07]} Qxc5+ {[%emt 0:00:42]} 30. Kh2 {[%emt 0:00:43]} Qc1 {[%emt 0:00:57]} 31. Ne7+ {[%emt 0:02:05]} Kf7 {[%emt 0:00:09]} 32. Ne4 {[%emt 0:00:25]} Qh6+ {[%emt 0:00:56]} 33. Bh3 {[%emt 0:00:11]} g5 {[%emt 0:00:28]} 34. Nd6+ {[%emt 0:00:20]} 1-0

[Event "106th British-ch 2019"]
[Site "Torquay"]
[Date "2019.07.28"]
[Round "2.3"]
[White "D'costa, Lorin Ar"]
[Black "Pert, Nicholas"]
[Result "1/2-1/2"]
[ECO "D23"]
[WhiteElo "2396"]
[BlackElo "2563"]
[Annotator "ChessBase"]
[PlyCount "57"]
[EventDate "2019.07.27"]
[EventType "swiss"]
[EventCountry "GBR"]
[SourceTitle "playchess.com"]
[Source "ChessBase"]
[SourceQuality "1"]
[TimeControl "40/5400+30:1800+30"]

1. d4 {[%emt 0:06:45]} d5 {[%emt 0:00:00]} 2. Nf3 {[%emt 0:00:37]} Nf6 {[%emt 0:00:00]} 3. c4 {[%emt 0:00:14]} c6 {[%emt 0:00:00]} 4. Qb3 {[%emt 0:00:19]} dxc4 {[%emt 0:00:24]} 5. Qxc4 {[%emt 0:00:09]} Bf5 {[%emt 0:00:10]} 6. g3 {[%emt 0:00:34]} e6 {[%emt 0:00:05]} 7. Bg2 {[%emt 0:00:13]} Nbd7 {[%emt 0:00:24]} 8. O-O {[%emt 0:00:23]} Be7 {[%emt 0:00:09]} 9. e3 {[%emt 0:01:04]} O-O {[%emt 0:00:18]} 10. Qe2 {[%emt 0:00:53]} Ne4 {[%emt 0:06:17]} 11. Rd1 {[%emt 0:10:03]} Qc7 {[%emt 0:02:41]} 12. Ne1 {[%emt 0:13:01]} Bg6 {[%emt 0:14:26]} 13. Nd3 {[%emt 0:05:06]} f5 {[%emt 0:11:58]} 14. Nd2 {[%emt 0:05:58]} Nef6 {[%emt 0:03:58]} 15. Nf3 {[%emt 0:11:43]} Bd6 {[%emt 0:13:29]} 16. b3 {[%emt 0:12:33]} e5 {[%emt 0:04:51]} 17. dxe5 {[%emt 0:09:03]} Nxe5 {[%emt 0:00:04]} 18. Ndxe5 {[%emt 0:04:47]} Bxe5 {[%emt 0:00:05]} 19. Nxe5 {[%emt 0:01:10]} Qxe5 {[%emt 0:00:02]} 20. Bb2 {[%emt 0:00:15]} Qe6 {[%emt 0:00:31]} 21. Bxf6 {[%emt 0:02:02]} Qxf6 {[%emt 0:01:29]} 22. b4 {[%emt 0:05:37]} a6 {[%emt 0:03:40]} 23. Rac1 {[%emt 0:01:31]} Rad8 {[%emt 0:00:23]} 24. a4 {[%emt 0:01:39]} Bf7 {[%emt 0:01:34]} 25. Qc2 {[%emt 0:03:14]} h6 {[%emt 0:06:09]} 26. Bf3 {[%emt 0:00:11]} Rd6 {[%emt 0:08:14]} 27. Rxd6 {[%emt 0:01:11]} Qxd6 {[%emt 0:00:01]} 28. Qc3 {[%emt 0:01:09]} Qe6 {[%emt 0:04:44]} 29. Qd4 {[%emt 0:00:43]} 1/2-1/2

[Event "106th British-ch 2019"]
[Site "Torquay"]
[Date "2019.07.28"]
[Round "2.4"]
[White "Lane, Gary W"]
[Black "Tan, Justin Hy"]
[Result "1/2-1/2"]
[ECO "B07"]
[WhiteElo "2364"]
[BlackElo "2513"]
[Annotator "ChessBase"]
[PlyCount "40"]
[EventDate "2019.07.27"]
[EventType "swiss"]
[EventCountry "GBR"]
[SourceTitle "playchess.com"]
[Source "ChessBase"]
[SourceQuality "1"]
[TimeControl "40/5400+30:1800+30"]

1. e4 {[%emt 0:00:00]} d6 {[%emt 0:04:40]} 2. d4 {[%emt 0:01:00]} Nf6 {[%emt 0:00:04]} 3. Nc3 {[%emt 0:00:05]} g6 {[%emt 0:00:03]} 4. Be3 {[%emt 0:02:45]} a6 {[%emt 0:00:05]} 5. f4 {[%emt 0:05:42]} b5 {[%emt 0:19:23]} 6. a3 {[%emt 0:07:04]} Bb7 {[%emt 0:03:39]} 7. Bd3 {[%emt 0:00:07]} Nbd7 {[%emt 0:01:15]} 8. Nf3 {[%emt 0:08:47]} e6 {[%emt 0:07:20]} 9. e5 {[%emt 0:15:52]} Nd5 {[%emt 0:00:15]} 10. Nxd5 {[%emt 0:06:09]} Bxd5 {[%emt 0:00:03]} 11. O-O {[%emt 0:00:58]} c5 {[%emt 0:04:08]} 12. c3 {[%emt 0:00:32]} Qb6 {[%emt 0:05:36]} 13. dxc5 {[%emt 0:09:16]} dxc5 {[%emt 0:00:12]} 14. Qc2 {[%emt 0:10:53]} Qb7 {[%emt 0:08:08]} 15. c4 {[%emt 0:00:47]} Bc6 {[%emt 0:02:53]} 16. Ng5 {[%emt 0:04:49]} bxc4 {[%emt 0:17:24]} 17. Bxc4 {[%emt 0:02:33]} Nb6 {[%emt 0:00:05]} 18. Ba2 {[%emt 0:05:49]} c4 {[%emt 0:06:01]} 19. Qf2 {[%emt 0:01:20]} Nd5 {[%emt 0:01:08]} 20. Ne4 {[%emt 0:01:16]} O-O-O {[%emt 0:02:28]} 1/2-1/2

[Event "106th British-ch 2019"]
[Site "Torquay"]
[Date "2019.07.28"]
[Round "2.5"]
[White "Emms, John M"]
[Black "Bates, Richard A"]
[Result "1/2-1/2"]
[ECO "B22"]
[WhiteElo "2481"]
[BlackElo "2352"]
[Annotator "ChessBase"]
[PlyCount "39"]
[EventDate "2019.07.27"]
[EventType "swiss"]
[EventCountry "GBR"]
[SourceTitle "playchess.com"]
[Source "ChessBase"]
[SourceQuality "1"]
[TimeControl "40/5400+30:1800+30"]

1. e4 {[%emt 0:00:00]} c5 {[%emt 0:00:00]} 2. c3 {[%emt 0:00:10]} e6 {[%emt 0:00:35]} 3. Nf3 {[%emt 0:00:59]} d5 {[%emt 0:00:39]} 4. exd5 {[%emt 0:00:48]} exd5 {[%emt 0:00:07]} 5. d4 {[%emt 0:04:13]} Nf6 {[%emt 0:00:50]} 6. Bg5 {[%emt 0:03:47]} Be7 {[%emt 0:00:51]} 7. Bb5+ {[%emt 0:18:58]} Bd7 {[%emt 0:06:02]} 8. Bxd7+ {[%emt 0:00:50]} Nbxd7 {[%emt 0:00:50]} 9. O-O {[%emt 0:01:14]} O-O {[%emt 0:01:10]} 10. Nbd2 {[%emt 0:00:05]} Re8 {[%emt 0:08:18]} 11. Re1 {[%emt 0:05:14]} Qb6 {[%emt 0:04:13]} 12. Qc2 {[%emt 0:09:20]} Bf8 {[%emt 0:06:15]} 13. dxc5 {[%emt 0:11:28]} Nxc5 {[%emt 0:06:37]} 14. Be3 {[%emt 0:03:02]} Ng4 {[%emt 0:08:16]} 15. Bd4 {[%emt 0:02:27]} Qg6 {[%emt 0:00:25]} 16. Qxg6 {[%emt 0:01:58]} hxg6 {[%emt 0:00:07]} 17. h3 {[%emt 0:13:32]} Nf6 {[%emt 0:05:29]} 18. Rxe8 {[%emt 0:07:28]} Rxe8 19. Re1 {[%emt 0:14:20]} a6 {[%emt 0:05:00]} 20. Rxe8 {[%emt 0:00:00]} 1/2-1/2

[Event "106th British-ch 2019"]
[Site "Torquay"]
[Date "2019.07.28"]
[Round "2.9"]
[White "Smith, Andrew Philip"]
[Black "Ward, Chris G"]
[Result "1-0"]
[ECO "B74"]
[WhiteElo "2147"]
[BlackElo "2418"]
[Annotator "NA"]
[PlyCount "69"]
[EventDate "2019.07.27"]
[EventType "swiss"]
[EventCountry "GBR"]
[SourceTitle "playchess.com"]
[Source "ChessBase"]
[SourceQuality "1"]
[TimeControl "40/5400+30:1800+30"]

1. e4 {[%emt 0:00:07]} c5 {[%emt 0:00:00]} 2. Nf3 {[%emt 0:01:56]} d6 {[%emt 0:00:00]} 3. d4 {[%emt 0:00:38]} cxd4 {[%emt 0:00:00]} 4. Nxd4 {[%emt 0:00:03]} Nf6 {[%emt 0:00:02]} 5. Nc3 {[%emt 0:00:05]} g6 {[%emt 0:00:05]} 6. Be2 {[%emt 0:01:36]} Bg7 {[%emt 0:01:46]} 7. Be3 {[%emt 0:01:01]} Nc6 {[%emt 0:06:38]} 8. Nb3 {[%emt 0:01:22]} O-O {[%emt 0:01:09]} 9. O-O {[%emt 0:01:17]} Be6 {[%emt 0:00:53]} 10. f4 {[%emt 0:02:26]} Rc8 {[%emt 0:00:23]} 11. f5 {[%emt 0:04:12]} Bd7 {[%emt 0:04:28]} 12. Qd2 {[%emt 0:01:49]} Ne5 {[%emt 0:10:45]} 13. Rae1 {[%emt 0:23:44]} b5 {[%emt 0:22:09]} 14. a3 {[%emt 0:10:42]} a5 {[%emt 0:10:25]} 15. Bd3 {[%emt 0:03:21]} b4 {[%emt 0:02:39]} 16. axb4 {[%emt 0:00:18]} axb4 {[%emt 0:00:04]} 17. Nd1 {[%emt 0:05:18]} Nc4 {[%emt 0:04:49]} 18. Bxc4 {[%emt 0:00:48]} Rxc4 {[%emt 0:00:05]} 19. Bd4 {[%emt 0:00:46]} Qa8 {[%emt 0:07:47]} 20. Ne3 {[%emt 0:13:43]} Nxe4 {[%emt 0:03:28]} 21. Qd3 {[%emt 0:02:34]} Rxd4 {[%emt 0:05:49]} 22. Nxd4 {[%emt 0:01:10]} Nc5 {[%emt 0:01:32]} 23. Qd1 {[%emt 0:06:31]} Qe4 {[%emt 0:04:13]} 24. Nf3 {[%emt 0:03:48]} Bc6 {[%emt 0:00:46]} 25. h3 {[%emt 0:03:24]} gxf5 {[%emt 0:05:04]} 26. Ng5 {[%emt 0:04:04]} Qd4 {[%emt 0:01:41]} 27. Qh5 {[%emt 0:00:39]} h6 {[%emt 0:00:45]} 28. c3 {[%emt 0:00:11]} bxc3 {[%emt 0:01:15]} 29. bxc3 {[%emt 0:00:05]} Qxc3 {[%emt 0:01:29]} 30. Nxf5 {[%emt 0:00:13]} Bd4+ {[%emt 0:03:05]} 31. Kh1 {[%emt 0:00:29]} Bxg2+ {[%emt 0:00:30]} 32. Kxg2 {[%emt 0:00:24]} Qd2+ {[%emt 0:00:08]} 33. Kh1 {[%emt 0:00:21]} hxg5 {[%emt 0:01:08]} 34. Nxe7+ {[%emt 0:00:48]} Kg7 {[%emt 0:00:04]} 35. Rxf7+ {[%emt 0:00:57]} 1-0

[Event "106th British-ch 2019"]
[Site "Torquay"]
[Date "2019.07.28"]
[Round "2.11"]
[White "Fernandez, Daniel Howard"]
[Black "Rocco, Federico"]
[Result "0-1"]
[ECO "A14"]
[WhiteElo "2466"]
[BlackElo "2157"]
[Annotator "ChessBase"]
[PlyCount "104"]
[EventDate "2019.07.27"]
[EventType "swiss"]
[EventCountry "GBR"]
[SourceTitle "playchess.com"]
[Source "ChessBase"]
[SourceQuality "1"]
[TimeControl "40/5400+30:1800+30"]

1. Nf3 {[%emt 0:00:00]} Nf6 {[%emt 0:06:38]} 2. c4 {[%emt 0:00:00]} e6 {[%emt 0:00:30]} 3. g3 {[%emt 0:00:04]} b6 {[%emt 0:00:20]} 4. Bg2 {[%emt 0:01:24]} Bb7 {[%emt 0:00:08]} 5. Nc3 {[%emt 0:00:06]} c5 {[%emt 0:00:10]} 6. O-O {[%emt 0:00:23]} Be7 {[%emt 0:00:25]} 7. b3 {[%emt 0:00:08]} d5 {[%emt 0:03:04]} 8. cxd5 {[%emt 0:00:20]} Nxd5 {[%emt 0:00:10]} 9. Nxd5 {[%emt 0:03:34]} Bxd5 {[%emt 0:00:10]} 10. Bb2 {[%emt 0:00:03]} O-O {[%emt 0:01:12]} 11. Qc2 {[%emt 0:00:25]} Nc6 {[%emt 0:04:57]} 12. Rad1 {[%emt 0:00:20]} Qc8 {[%emt 0:03:09]} 13. Qb1 {[%emt 0:00:13]} Nb4 {[%emt 0:02:41]} 14. d4 {[%emt 0:04:36]} cxd4 {[%emt 0:01:41]} 15. Rxd4 {[%emt 0:00:02]} Qc2 {[%emt 0:05:02]} 16. e4 {[%emt 0:00:56]} Qxb1 {[%emt 0:03:40]} 17. Rxb1 {[%emt 0:00:02]} Bc6 {[%emt 0:04:16]} 18. a3 {[%emt 0:00:08]} Na6 {[%emt 0:02:05]} 19. Ne5 {[%emt 0:00:13]} Rac8 {[%emt 0:05:02]} 20. Nxc6 {[%emt 0:00:17]} Rxc6 {[%emt 0:00:05]} 21. Rd7 {[%emt 0:00:25]} Rc7 {[%emt 0:00:26]} 22. Rbd1 {[%emt 0:01:09]} Rfc8 {[%emt 0:15:16]} 23. Be5 {[%emt 0:00:57]} Rxd7 {[%emt 0:01:26]} 24. Rxd7 {[%emt 0:00:02]} Bf6 {[%emt 0:00:13]} 25. Bd6 {[%emt 0:03:29]} Nc5 {[%emt 0:02:26]} 26. Rxa7 {[%emt 0:00:09]} Bd4 {[%emt 0:00:54]} 27. Kf1 {[%emt 0:04:34]} Nxb3 {[%emt 0:01:50]} 28. Bb4 {[%emt 0:03:14]} g6 {[%emt 0:01:26]} 29. Bf3 {[%emt 0:01:21]} Rc2 {[%emt 0:04:03]} 30. Be1 {[%emt 0:00:52]} Rc1 {[%emt 0:00:47]} 31. Rd7 {[%emt 0:02:33]} e5 {[%emt 0:01:12]} 32. Ke2 {[%emt 0:00:08]} Ra1 {[%emt 0:00:32]} 33. Bb4 {[%emt 0:00:49]} Nc5 {[%emt 0:04:20]} 34. Bxc5 {[%emt 0:05:35]} bxc5 {[%emt 0:00:34]} 35. Rc7 {[%emt 0:01:01]} Rxa3 {[%emt 0:00:47]} 36. Bg4 {[%emt 0:00:38]} Ra2+ {[%emt 0:00:08]} 37. Kd3 {[%emt 0:00:01]} Rxf2 {[%emt 0:00:08]} 38. h4 {[%emt 0:00:14]} Rg2 {[%emt 0:00:06]} 39. Bd7 {[%emt 0:00:13]} Rxg3+ {[%emt 0:00:12]} 40. Kc4 {[%emt 0:00:04]} h5 {[%emt 0:00:55]} 41. Kd5 {[%emt 0:30:08]} Rf3 {[%emt 0:30:15]} 42. Kd6 {[%emt 0:00:08]} Rf4 {[%emt 0:00:22]} 43. Bc6 {[%emt 0:00:13]} Rxh4 {[%emt 0:00:19]} 44. Bd5 {[%emt 0:00:04]} Rf4 {[%emt 0:00:44]} 45. Ke7 {[%emt 0:00:04]} h4 {[%emt 0:00:54]} 46. Ke8 {[%emt 0:00:16]} h3 {[%emt 0:00:21]} 47. Bxf7+ {[%emt 0:00:04]} Rxf7 {[%emt 0:00:08]} 48. Rxf7 {[%emt 0:00:04]} h2 {[%emt 0:00:05]} 49. Rf8+ {[%emt 0:00:25]} Kg7 {[%emt 0:00:05]} 50. Rf7+ {[%emt 0:00:03]} Kh6 {[%emt 0:00:05]} 51. Rf8 {[%emt 0:00:03]} Kg5 {[%emt 0:00:10]} 52. Rh8 {[%emt 0:00:05]} Bg1 {[%emt 0:00:05]} 0-1

[Event "106th British-ch 2019"]
[Site "Torquay"]
[Date "2019.07.28"]
[Round "2.13"]
[White "Houska, Jovanka"]
[Black "Villiers, Thomas"]
[Result "1-0"]
[ECO "D02"]
[WhiteElo "2422"]
[BlackElo "2218"]
[Annotator "NA"]
[PlyCount "81"]
[EventDate "2019.07.27"]
[EventType "swiss"]
[EventCountry "GBR"]
[SourceTitle "playchess.com"]
[Source "ChessBase"]
[SourceQuality "1"]
[TimeControl "40/5400+30:1800+30"]

1. d4 {[%emt 0:00:34]} d5 {[%emt 0:00:00]} 2. Bf4 {[%emt 0:02:03]} Bf5 {[%emt 0:00:56]} 3. e3 {[%emt 0:00:24]} e6 {[%emt 0:00:18]} 4. Nf3 {[%emt 0:00:51]} Bd6 {[%emt 0:00:40]} 5. Bg3 {[%emt 0:05:19]} Nf6 {[%emt 0:00:34]} 6. Be2 {[%emt 0:01:10]} Ne4 {[%emt 0:01:06]} 7. c4 {[%emt 0:01:53]} c6 {[%emt 0:04:12]} 8. Nc3 {[%emt 0:03:12]} O-O {[%emt 0:05:30]} 9. Qb3 {[%emt 0:08:11]} Nxg3 {[%emt 0:01:36]} 10. hxg3 {[%emt 0:00:05]} Qb6 {[%emt 0:00:25]} 11. c5 {[%emt 0:02:35]} Qxb3 {[%emt 0:00:11]} 12. axb3 {[%emt 0:00:04]} Bc7 {[%emt 0:02:23]} 13. b4 {[%emt 0:00:04]} Nd7 {[%emt 0:00:08]} 14. b5 {[%emt 0:00:51]} Bg4 {[%emt 0:01:32]} 15. Kd2 {[%emt 0:07:33]} e5 {[%emt 0:02:50]} 16. b4 {[%emt 0:05:18]} e4 {[%emt 0:14:56]} 17. Ne1 {[%emt 0:08:50]} Bxe2 {[%emt 0:00:21]} 18. Kxe2 {[%emt 0:00:08]} Rfb8 {[%emt 0:04:16]} 19. Nc2 {[%emt 0:01:11]} a6 {[%emt 0:00:58]} 20. bxc6 {[%emt 0:04:15]} bxc6 {[%emt 0:00:27]} 21. Ra2 {[%emt 0:01:09]} Rb7 {[%emt 0:03:49]} 22. b5 {[%emt 0:03:06]} Nb8 {[%emt 0:00:07]} 23. bxc6 {[%emt 0:02:47]} Nxc6 {[%emt 0:00:08]} 24. Nxd5 {[%emt 0:00:05]} Bd8 {[%emt 0:00:35]} 25. Rha1 {[%emt 0:01:53]} a5 {[%emt 0:00:14]} 26. g4 {[%emt 0:04:52]} g6 {[%emt 0:00:22]} 27. Nc3 {[%emt 0:05:14]} f5 {[%emt 0:00:06]} 28. gxf5 {[%emt 0:00:35]} gxf5 {[%emt 0:00:08]} 29. g4 {[%emt 0:00:06]} fxg4 {[%emt 0:00:06]} 30. Nxe4 {[%emt 0:00:45]} h5 {[%emt 0:00:44]} 31. d5 {[%emt 0:02:50]} Nb4 {[%emt 0:01:49]} 32. c6 {[%emt 0:07:30]} Rb6 {[%emt 0:02:19]} 33. Rxa5 {[%emt 0:06:58]} Rxa5 {[%emt 0:00:09]} 34. Rxa5 {[%emt 0:00:03]} Nxc6 {[%emt 0:00:24]} 35. dxc6 {[%emt 0:00:48]} Rxc6 {[%emt 0:00:07]} 36. Nd4 {[%emt 0:00:39]} Re6 {[%emt 0:00:36]} 37. Nxe6 {[%emt 0:01:44]} Bxa5 {[%emt 0:00:15]} 38. Nf4 {[%emt 0:00:02]} h4 {[%emt 0:00:16]} 39. Nf6+ {[%emt 0:00:06]} Kf7 {[%emt 0:00:05]} 40. Nxg4 {[%emt 0:00:04]} Bc7 {[%emt 0:00:10]} 41. Kf3 {[%emt 0:30:11]} 1-0

[Event "106th British-ch 2019"]
[Site "Torquay"]
[Date "2019.07.28"]
[Round "2.14"]
[White "Willow, Jonah B"]
[Black "Ogunshola, Olugbemiga (Ben)"]
[Result "1-0"]
[ECO "B06"]
[WhiteElo "2343"]
[BlackElo "2172"]
[Annotator "NA"]
[PlyCount "65"]
[EventDate "2019.07.27"]
[EventType "swiss"]
[EventCountry "GBR"]
[SourceTitle "playchess.com"]
[Source "ChessBase"]
[SourceQuality "1"]
[TimeControl "40/5400+30:1800+30"]

1. e4 {[%emt 0:00:00]} d6 {[%emt 0:02:06]} 2. d4 {[%emt 0:00:00]} g6 {[%emt 0:00:15]} 3. Nc3 {[%emt 0:00:01]} Bg7 {[%emt 0:00:04]} 4. f4 {[%emt 0:00:08]} a6 {[%emt 0:07:11]} 5. Nf3 {[%emt 0:00:27]} b5 {[%emt 0:01:02]} 6. Bd3 {[%emt 0:01:41]} Bb7 {[%emt 0:00:13]} 7. O-O {[%emt 0:02:20]} Nd7 {[%emt 0:01:06]} 8. a4 {[%emt 0:03:18]} b4 {[%emt 0:03:37]} 9. Ne2 {[%emt 0:00:12]} c5 {[%emt 0:00:40]} 10. c3 {[%emt 0:00:17]} bxc3 {[%emt 0:05:50]} 11. bxc3 {[%emt 0:00:16]} e6 {[%emt 0:01:18]} 12. f5 {[%emt 0:11:13]} gxf5 {[%emt 0:15:05]} 13. exf5 {[%emt 0:00:49]} e5 {[%emt 0:00:02]} 14. Ng5 {[%emt 0:32:30]} Ngf6 {[%emt 0:01:07]} 15. Qe1 {[%emt 0:09:05]} h6 {[%emt 0:05:17]} 16. Nh3 {[%emt 0:01:03]} Qe7 {[%emt 0:03:16]} 17. Rb1 {[%emt 0:03:26]} Bc6 {[%emt 0:02:58]} 18. Ng3 {[%emt 0:02:44]} O-O {[%emt 0:09:46]} 19. Nf4 {[%emt 0:02:53]} Rfe8 {[%emt 0:00:58]} 20. Nfh5 {[%emt 0:03:08]} Bf8 {[%emt 0:04:00]} 21. dxc5 {[%emt 0:02:26]} d5 {[%emt 0:03:17]} 22. Be3 {[%emt 0:01:49]} Qd8 {[%emt 0:07:38]} 23. Nxf6+ {[%emt 0:01:26]} Nxf6 {[%emt 0:00:59]} 24. Rb6 {[%emt 0:00:06]} Qc7 {[%emt 0:03:39]} 25. Ne2 {[%emt 0:03:47]} e4 {[%emt 0:01:30]} 26. Bb1 {[%emt 0:05:13]} Ng4 {[%emt 0:01:29]} 27. Rf4 {[%emt 0:02:29]} Nxe3 {[%emt 0:04:34]} 28. Qg3+ {[%emt 0:00:03]} Kh7 {[%emt 0:02:42]} 29. Qxe3 {[%emt 0:00:05]} Bd7 {[%emt 0:08:54]} 30. Rh4 {[%emt 0:01:37]} Bxf5 {[%emt 0:02:24]} 31. Rbxh6+ {[%emt 0:00:34]} Kg7 {[%emt 0:00:10]} 32. Qg5+ {[%emt 0:00:07]} Bg6 {[%emt 0:00:01]} 33. Rh7+ {[%emt 0:00:05]} 1-0